[Event "1er Tournoi de GM du Barreau de Paris"]
[Site "Paris, France"]
[Date "2019.12.16"]
[Round "1.1"]
[White "DAVID, Alberto"]
[Black "FEDORCHUK, Sergey"]
[Result "1/2-1/2"]
[TimeControl "1h30+30s\cp"]
[WhiteTitle "GM"]
[BlackTitle "GM"]
[WhiteElo "2545"]
[BlackElo "2636"]

1. e4 {[%clk 01:30:46]} {[%emt 00:00:13]} c5 {[%clk 01:30:11]} {[%emt
00:00:49]} 2. Nf3 {[%clk 01:31:01]} {[%emt 00:00:16]} e6 {[%clk 01:30:15]}
{[%emt 00:00:25]} 3. c3 {[%clk 01:30:00]} {[%emt 00:01:32]} d5 {[%clk
01:29:30]} {[%emt 00:01:15]} 4. e5 {[%clk 01:30:17]} {[%emt 00:00:13]} d4
{[%clk 01:29:15]} {[%emt 00:00:44]} 5. g3 {[%clk 01:29:07]} {[%emt 00:01:41]}
dxc3 {[%clk 01:22:23]} {[%emt 00:07:22]} 6. dxc3 {[%clk 01:15:03]} {[%emt
00:14:34]} Qxd1+ {[%clk 01:19:57]} {[%emt 00:02:56]} 7. Kxd1 {[%clk 01:15:28]}
{[%emt 00:00:04]} Bd7 {[%clk 01:15:28]} {[%emt 00:04:59]} 8. Bd3 {[%clk
00:54:21]} {[%emt 00:21:37]} Bc6 {[%clk 01:10:23]} {[%emt 00:05:35]} 9. Nbd2
{[%clk 00:54:01]} {[%emt 00:00:50]} Nd7 {[%clk 00:59:15]} {[%emt 00:11:37]} 10.
Be4 {[%clk 00:49:09]} {[%emt 00:05:23]} Ne7 {[%clk 00:57:26]} {[%emt 00:02:19]}
11. Re1 {[%clk 00:40:11]} {[%emt 00:09:28]} Nb6 {[%clk 00:42:40]} {[%emt
00:15:16]} 12. c4 {[%clk 00:24:40]} {[%emt 00:16:01]} Rd8 {[%clk 00:37:58]}
{[%emt 00:05:11]} 13. Ke2 {[%clk 00:22:34]} {[%emt 00:02:36]} Bxe4 {[%clk
00:18:25]} {[%emt 00:20:04]} 14. Nxe4 {[%clk 00:22:51]} {[%emt 00:00:13]} Nc6
{[%clk 00:18:40]} {[%emt 00:00:15]} 15. b3 {[%clk 00:23:05]} {[%emt 00:00:16]}
Be7 {[%clk 00:18:23]} {[%emt 00:00:46]} 16. Be3 {[%clk 00:15:35]} {[%emt
00:08:01]} Nd7 {[%clk 00:18:09]} {[%emt 00:00:44]} 17. Rad1 {[%clk 00:14:05]}
{[%emt 00:02:00]} b6 {[%clk 00:18:00]} {[%emt 00:00:39]} 18. Bf4 {[%clk
00:13:48]} {[%emt 00:00:47]} h6 {[%clk 00:16:03]} {[%emt 00:02:27]} 19. h4
{[%clk 00:13:30]} {[%emt 00:00:48]} Ndb8 {[%clk 00:15:00]} {[%emt 00:01:33]} 20.
Rxd8+ {[%clk 00:09:48]} {[%emt 00:04:12]} 1/2-1/2

[Event "1er Tournoi de GM du Barreau de Paris"]
[Site "Paris, France"]
[Date "2019.12.16"]
[Round "1.2"]
[White "LAMARD, Guillaume"]
[Black "RAKOTOMAHARO, Fy Antenaina"]
[Result "1-0"]
[TimeControl "1h30+30s\cp"]
[WhiteTitle "FM"]
[BlackTitle "IM"]
[WhiteElo "2452"]
[BlackElo "2438"]

1. Nf3 {[%clk 01:30:56]} {[%emt 00:00:04]} d5 {[%clk 01:30:20]} {[%emt
00:00:40]} 2. d4 {[%clk 01:30:28]} {[%emt 00:00:59]} Nf6 {[%clk 01:30:43]}
{[%emt 00:00:07]} 3. c4 {[%clk 01:30:54]} {[%emt 00:00:04]} e6 {[%clk
01:31:08]} {[%emt 00:00:05]} 4. g3 {[%clk 01:31:19]} {[%emt 00:00:06]} dxc4
{[%clk 01:31:20]} {[%emt 00:00:18]} 5. Bg2 {[%clk 01:31:41]} {[%emt 00:00:08]}
Nbd7 {[%clk 01:31:44]} {[%emt 00:00:06]} 6. O-O {[%clk 01:30:02]} {[%emt
00:02:09]} Rb8 {[%clk 01:32:09]} {[%emt 00:00:05]} 7. Qc2 {[%clk 01:10:41]}
{[%emt 00:19:50]} b5 {[%clk 01:32:12]} {[%emt 00:00:27]} 8. b3 {[%clk
01:10:59]} {[%emt 00:00:13]} Bb7 {[%clk 01:31:37]} {[%emt 00:01:04]} 9. bxc4
{[%clk 01:09:14]} {[%emt 00:02:15]} bxc4 {[%clk 01:32:01]} {[%emt 00:00:06]} 10.
Nbd2 {[%clk 01:07:32]} {[%emt 00:02:13]} c5 {[%clk 01:23:47]} {[%emt 00:08:44]}
11. Nxc4 {[%clk 01:02:27]} {[%emt 00:05:35]} Be4 {[%clk 01:02:31]} {[%emt
00:21:45]} 12. Qd1 {[%clk 01:02:44]} {[%emt 00:00:15]} Be7 {[%clk 01:02:57]}
{[%emt 00:00:04]} 13. dxc5 {[%clk 00:40:03]} {[%emt 00:23:11]} O-O {[%clk
00:59:23]} {[%emt 00:04:03]} 14. Bf4 {[%clk 00:40:06]} {[%emt 00:00:27]} Rb4
{[%clk 00:59:17]} {[%emt 00:00:36]} 15. Rc1 {[%clk 00:35:55]} {[%emt 00:04:42]}
Nxc5 {[%clk 00:42:55]} {[%emt 00:16:52]} 16. Qxd8 {[%clk 00:36:18]} {[%emt
00:00:06]} Rxd8 {[%clk 00:43:21]} {[%emt 00:00:04]} 17. Nfe5 {[%clk 00:36:43]}
{[%emt 00:00:06]} Ra4 {[%clk 00:39:28]} {[%emt 00:04:22]} 18. Bxe4 {[%clk
00:36:10]} {[%emt 00:01:03]} Ncxe4 {[%clk 00:37:33]} {[%emt 00:02:25]} 19. Nc6
{[%clk 00:35:34]} {[%emt 00:01:07]} Re8 {[%clk 00:24:36]} {[%emt 00:13:27]} 20.
Nxe7+ {[%clk 00:35:56]} {[%emt 00:00:08]} Rxe7 {[%clk 00:25:01]} {[%emt
00:00:05]} 21. f3 {[%clk 00:36:23]} {[%emt 00:00:03]} Rxa2 {[%clk 00:22:12]}
{[%emt 00:03:19]} 22. fxe4 {[%clk 00:36:35]} {[%emt 00:00:18]} Nxe4 {[%clk
00:21:25]} {[%emt 00:01:17]} 23. Nd6 {[%clk 00:33:41]} {[%emt 00:03:24]} Nxd6
{[%clk 00:21:50]} {[%emt 00:00:05]} 24. Bxd6 {[%clk 00:34:08]} {[%emt
00:00:03]} Re8 {[%clk 00:22:16]} {[%emt 00:00:04]} 25. Rc7 {[%clk 00:34:33]}
{[%emt 00:00:05]} f6 {[%clk 00:22:10]} {[%emt 00:00:36]} 26. Rb1 {[%clk
00:34:28]} {[%emt 00:00:35]} Kh8 {[%clk 00:12:20]} {[%emt 00:10:19]} 27. Rbb7
{[%clk 00:34:20]} {[%emt 00:00:39]} Rg8 {[%clk 00:12:45]} {[%emt 00:00:06]} 28.
Be7 {[%clk 00:33:02]} {[%emt 00:01:48]} Re8 {[%clk 00:13:11]} {[%emt 00:00:04]}
29. Bd6 {[%clk 00:31:26]} {[%emt 00:02:06]} Rg8 {[%clk 00:10:58]} {[%emt
00:02:42]} 30. Kf2 {[%clk 00:31:02]} {[%emt 00:00:55]} h5 {[%clk 00:08:32]}
{[%emt 00:02:56]} 31. Rf7 {[%clk 00:31:23]} {[%emt 00:00:09]} e5 {[%clk
00:07:02]} {[%emt 00:02:00]} 32. Bf8 {[%clk 00:31:11]} {[%emt 00:00:42]} Kh7
{[%clk 00:05:11]} {[%emt 00:02:21]} 33. Bxg7 {[%clk 00:30:01]} {[%emt
00:01:40]} Kg6 {[%clk 00:05:16]} {[%emt 00:00:25]} 34. Bxf6 {[%clk 00:29:33]}
{[%emt 00:00:58]} Re8 {[%clk 00:05:16]} {[%emt 00:00:30]} 35. Bh4 {[%clk
00:29:50]} {[%emt 00:00:12]} Re6 {[%clk 00:05:18]} {[%emt 00:00:29]} 36. Rxa7
{[%clk 00:28:34]} {[%emt 00:01:47]} 1-0

[Event "1er Tournoi de GM du Barreau de Paris"]
[Site "Paris, France"]
[Date "2019.12.16"]
[Round "1.3"]
[White "DI NICOLANTONIO, Lucas"]
[Black "MAURIZZI, Marc Andria"]
[Result "1/2-1/2"]
[TimeControl "1h30+30s\cp"]
[WhiteTitle "IM"]
[BlackTitle "IM"]
[WhiteElo "2408"]
[BlackElo "2404"]

1. e4 {[%clk 01:30:56]} {[%emt 00:00:03]} e6 {[%clk 01:30:49]} {[%emt
00:00:12]} 2. d4 {[%clk 01:31:02]} {[%emt 00:00:23]} d5 {[%clk 01:31:10]}
{[%emt 00:00:09]} 3. Nc3 {[%clk 01:30:30]} {[%emt 00:01:02]} Nf6 {[%clk
01:31:29]} {[%emt 00:00:12]} 4. e5 {[%clk 01:30:41]} {[%emt 00:00:18]} Nfd7
{[%clk 01:31:43]} {[%emt 00:00:17]} 5. f4 {[%clk 01:30:54]} {[%emt 00:00:16]}
c5 {[%clk 01:31:58]} {[%emt 00:00:15]} 6. Nf3 {[%clk 01:31:08]} {[%emt
00:00:15]} Nc6 {[%clk 01:32:14]} {[%emt 00:00:15]} 7. Be3 {[%clk 01:31:20]}
{[%emt 00:00:18]} Be7 {[%clk 01:32:19]} {[%emt 00:00:25]} 8. Qd2 {[%clk
01:30:30]} {[%emt 00:01:20]} O-O {[%clk 01:31:43]} {[%emt 00:01:06]} 9. dxc5
{[%clk 01:29:02]} {[%emt 00:01:57]} Qa5 {[%clk 01:30:06]} {[%emt 00:02:07]} 10.
O-O-O {[%clk 01:25:30]} {[%emt 00:04:02]} b6 {[%clk 01:29:07]} {[%emt
00:01:30]} 11. Bb5 {[%clk 01:23:05]} {[%emt 00:02:55]} Nb4 {[%clk 01:29:26]}
{[%emt 00:00:11]} 12. a3 {[%clk 01:21:05]} {[%emt 00:02:29]} bxc5 {[%clk
01:28:05]} {[%emt 00:01:51]} 13. Kb1 {[%clk 01:19:52]} {[%emt 00:01:43]} Rb8
{[%clk 01:20:59]} {[%emt 00:07:36]} 14. axb4 {[%clk 01:10:13]} {[%emt
00:10:09]} cxb4 {[%clk 01:21:11]} {[%emt 00:00:18]} 15. Nxd5 {[%clk 01:10:14]}
{[%emt 00:00:28]} exd5 {[%clk 01:21:37]} {[%emt 00:00:05]} 16. Bxd7 {[%clk
01:09:46]} {[%emt 00:00:57]} Bxd7 {[%clk 01:22:04]} {[%emt 00:00:03]} 17. Qxd5
{[%clk 01:09:56]} {[%emt 00:00:20]} Qxd5 {[%clk 01:22:29]} {[%emt 00:00:05]} 18.
Rxd5 {[%clk 01:10:21]} {[%emt 00:00:05]} Bc6 {[%clk 01:22:29]} {[%emt
00:00:30]} 19. Ra5 {[%clk 01:07:20]} {[%emt 00:03:31]} Rfc8 {[%clk 01:20:36]}
{[%emt 00:02:23]} 20. b3 {[%clk 00:54:28]} {[%emt 00:13:21]} Be4 {[%clk
01:14:54]} {[%emt 00:06:11]} 21. Rc1 {[%clk 00:52:40]} {[%emt 00:02:18]} a6
{[%clk 00:54:51]} {[%emt 00:20:35]} 22. Nd2 {[%clk 00:30:12]} {[%emt 00:22:56]}
Bxg2 {[%clk 00:51:49]} {[%emt 00:03:33]} 23. Rxa6 {[%clk 00:30:28]} {[%emt
00:00:14]} Rc3 {[%clk 00:43:03]} {[%emt 00:09:16]} 24. Ra7 {[%clk 00:26:37]}
{[%emt 00:04:22]} Bf8 {[%clk 00:30:56]} {[%emt 00:12:37]} 25. Bd4 {[%clk
00:04:29]} {[%emt 00:22:38]} Rh3 {[%clk 00:31:01]} {[%emt 00:00:25]} 26. Bg1
{[%clk 00:02:15]} {[%emt 00:02:44]} g6 {[%clk 00:22:07]} {[%emt 00:09:25]} 27.
Re1 {[%clk 00:02:32]} {[%emt 00:00:12]} Rd8 {[%clk 00:16:58]} {[%emt 00:05:40]}
28. Re2 {[%clk 00:02:47]} {[%emt 00:00:15]} Bd5 {[%clk 00:16:47]} {[%emt
00:00:41]} 29. Bb6 {[%clk 00:03:02]} {[%emt 00:00:15]} Rc8 {[%clk 00:15:28]}
{[%emt 00:01:49]} 30. Ra5 {[%clk 00:02:36]} {[%emt 00:00:55]} Be6 {[%clk
00:12:54]} {[%emt 00:03:05]} 31. Ne4 {[%clk 00:02:57]} {[%emt 00:00:09]} Rf3
{[%clk 00:11:13]} {[%emt 00:02:11]} 32. Nd6 {[%clk 00:02:57]} {[%emt 00:00:30]}
Rc6 {[%clk 00:10:54]} {[%emt 00:00:49]} 33. Rf2 {[%clk 00:02:06]} {[%emt
00:01:20]} Rxf2 {[%clk 00:10:19]} {[%emt 00:01:06]} 34. Bxf2 {[%clk 00:02:31]}
{[%emt 00:00:04]} Bxd6 {[%clk 00:10:11]} {[%emt 00:00:39]} 35. exd6 {[%clk
00:02:56]} {[%emt 00:00:05]} Rxd6 {[%clk 00:10:38]} {[%emt 00:00:04]} 36. Bc5
{[%clk 00:02:30]} {[%emt 00:00:56]} Rd2 {[%clk 00:08:52]} {[%emt 00:02:17]} 37.
Bxb4 {[%clk 00:02:52]} {[%emt 00:00:08]} Rxh2 {[%clk 00:09:16]} {[%emt
00:00:05]} 38. Bc3 {[%clk 00:02:55]} {[%emt 00:00:27]} Kf8 {[%clk 00:08:38]}
{[%emt 00:01:09]} 39. Bf6 {[%clk 00:03:18]} {[%emt 00:00:06]} Ke8 {[%clk
00:09:03]} {[%emt 00:00:05]} 40. Ra7 {[%clk 00:02:35]} {[%emt 00:01:13]} Bf5
{[%clk 00:08:16]} {[%emt 00:01:17]} 41. Re7+ {[%clk 00:02:58]} {[%emt
00:00:06]} Kf8 {[%clk 00:08:32]} {[%emt 00:00:15]} 42. Rc7 {[%clk 00:03:13]}
{[%emt 00:00:14]} Re2 {[%clk 00:07:50]} {[%emt 00:01:13]} 43. Kb2 {[%clk
00:01:53]} {[%emt 00:01:49]} Re6 {[%clk 00:07:22]} {[%emt 00:00:58]} 44. Rc8+
{[%clk 00:01:17]} {[%emt 00:01:06]} Re8 {[%clk 00:07:51]} {[%emt 00:00:01]} 45.
Rxe8+ {[%clk 00:01:11]} {[%emt 00:00:36]} Kxe8 {[%clk 00:08:20]} {[%emt
00:00:02]} 46. c4 {[%clk 00:01:04]} {[%emt 00:00:36]} Kd7 {[%clk 00:08:23]}
{[%emt 00:00:27]} 47. Kc3 {[%clk 00:00:47]} {[%emt 00:00:47]} h5 {[%clk
00:05:30]} {[%emt 00:03:23]} 48. Kd4 {[%clk 00:01:06]} {[%emt 00:00:11]} Ke6
{[%clk 00:04:10]} {[%emt 00:01:50]} 49. Bd8 {[%clk 00:01:17]} {[%emt 00:00:19]}
f6 {[%clk 00:04:08]} {[%emt 00:00:33]} 50. Ke3 {[%clk 00:00:45]} {[%emt
00:01:01]} Bc2 {[%clk 00:01:25]} {[%emt 00:03:14]} 51. b4 {[%clk 00:01:10]}
{[%emt 00:00:04]} Bb3 {[%clk 00:01:49]} {[%emt 00:00:05]} 52. c5 {[%clk
00:01:02]} {[%emt 00:00:38]} Ba4 {[%clk 00:02:04]} {[%emt 00:00:15]} 53. Kf3
{[%clk 00:01:16]} {[%emt 00:00:16]} Kf5 {[%clk 00:02:04]} {[%emt 00:00:31]} 54.
Kg3 {[%clk 00:01:34]} {[%emt 00:00:11]} g5 {[%clk 00:02:29]} {[%emt 00:00:06]}
55. fxg5 {[%clk 00:01:39]} {[%emt 00:00:25]} fxg5 {[%clk 00:02:57]} {[%emt
00:00:01]} 56. c6 {[%clk 00:01:06]} {[%emt 00:01:04]} h4+ {[%clk 00:02:52]}
{[%emt 00:00:36]} 57. Kh2 {[%clk 00:01:16]} {[%emt 00:00:18]} Bxc6 {[%clk
00:02:49]} {[%emt 00:00:34]} 58. Bb6 {[%clk 00:01:42]} {[%emt 00:00:04]} Kf4
{[%clk 00:02:49]} {[%emt 00:00:29]} 59. Bd8 {[%clk 00:00:41]} {[%emt 00:01:31]}
Kf5 {[%clk 00:02:51]} {[%emt 00:00:29]} 60. Bb6 {[%clk 00:01:06]} {[%emt
00:00:04]} Bb7 {[%clk 00:03:15]} {[%emt 00:00:06]} 61. Bc5 {[%clk 00:01:20]}
{[%emt 00:00:16]} g4 {[%clk 00:03:18]} {[%emt 00:00:28]} 62. Bf2 {[%clk
00:01:36]} {[%emt 00:00:13]} g3+ {[%clk 00:03:43]} {[%emt 00:00:05]} 1/2-1/2

[Event "1er Tournoi de GM du Barreau de Paris"]
[Site "Paris, France"]
[Date "2019.12.16"]
[Round "1.4"]
[White "SOCHACKI, Wojtek"]
[Black "LOISEAU, Quentin"]
[Result "1/2-1/2"]
[TimeControl "1h30+30s\cp"]
[WhiteTitle "IM"]
[BlackTitle "IM"]
[WhiteElo "2320"]
[BlackElo "2470"]

1. d4 {[%clk 01:30:46]} {[%emt 00:00:12]} Nf6 {[%clk 01:30:49]} {[%emt
00:00:11]} 2. c4 {[%clk 01:31:12]} {[%emt 00:00:04]} e6 {[%clk 01:31:14]}
{[%emt 00:00:05]} 3. Nc3 {[%clk 01:31:38]} {[%emt 00:00:04]} Bb4 {[%clk
01:31:38]} {[%emt 00:00:05]} 4. Nf3 {[%clk 01:31:51]} {[%emt 00:00:18]} d5
{[%clk 01:31:35]} {[%emt 00:00:33]} 5. Bg5 {[%clk 01:32:07]} {[%emt 00:00:14]}
dxc4 {[%clk 01:31:34]} {[%emt 00:00:31]} 6. e4 {[%clk 01:29:54]} {[%emt
00:02:42]} h6 {[%clk 01:31:14]} {[%emt 00:00:51]} 7. Bxf6 {[%clk 01:29:10]}
{[%emt 00:01:14]} Qxf6 {[%clk 01:31:42]} {[%emt 00:00:02]} 8. Bxc4 {[%clk
01:29:05]} {[%emt 00:00:34]} c5 {[%clk 01:28:48]} {[%emt 00:03:24]} 9. O-O
{[%clk 01:29:13]} {[%emt 00:00:22]} cxd4 {[%clk 01:25:50]} {[%emt 00:03:28]} 10.
Nb5 {[%clk 01:29:26]} {[%emt 00:00:17]} Qe7 {[%clk 01:22:45]} {[%emt 00:03:35]}
11. Qxd4 {[%clk 01:29:25]} {[%emt 00:00:31]} O-O {[%clk 01:22:53]} {[%emt
00:00:22]} 12. Nxa7 {[%clk 01:29:12]} {[%emt 00:00:43]} Bc5 {[%clk 01:23:10]}
{[%emt 00:00:12]} 13. Nxc8 {[%clk 01:29:36]} {[%emt 00:00:06]} Rxc8 {[%clk
01:23:37]} {[%emt 00:00:03]} 14. Qd3 {[%clk 01:29:12]} {[%emt 00:00:53]} Nc6
{[%clk 01:23:33]} {[%emt 00:00:34]} 15. Qe2 {[%clk 01:21:32]} {[%emt 00:08:11]}
Nd4 {[%clk 01:23:22]} {[%emt 00:00:41]} 16. Nxd4 {[%clk 01:21:57]} {[%emt
00:00:06]} Bxd4 {[%clk 01:23:47]} {[%emt 00:00:04]} 17. Rab1 {[%clk 01:08:53]}
{[%emt 00:13:34]} 1/2-1/2

[Event "1er Tournoi de GM du Barreau de Paris"]
[Site "Paris, France"]
[Date "2019.12.16"]
[Round "1.5"]
[White "MOUHAMAD, Joachim"]
[Black "GULIYEV, Namig"]
[Result "1/2-1/2"]
[TimeControl "1h30+30s\cp"]
[WhiteTitle "FM"]
[BlackTitle "GM"]
[WhiteElo "2293"]
[BlackElo "2548"]

1. d4 {[%clk 01:30:57]} {[%emt 00:00:02]} d5 {[%clk 00:47:54]} {[%emt
00:43:06]} 2. Bf4 {[%clk 01:31:18]} {[%emt 00:00:09]} c5 {[%clk 00:47:17]}
{[%emt 00:01:08]} 3. e3 {[%clk 01:31:45]} {[%emt 00:00:02]} cxd4 {[%clk
00:47:40]} {[%emt 00:00:07]} 4. exd4 {[%clk 01:32:09]} {[%emt 00:00:06]} Nc6
{[%clk 00:48:06]} {[%emt 00:00:03]} 5. Nf3 {[%clk 01:30:33]} {[%emt 00:02:06]}
Bf5 {[%clk 00:47:23]} {[%emt 00:01:13]} 6. c3 {[%clk 01:29:03]} {[%emt
00:02:00]} e6 {[%clk 00:46:25]} {[%emt 00:01:28]} 7. Nbd2 {[%clk 01:29:13]}
{[%emt 00:00:20]} Bd6 {[%clk 00:46:46]} {[%emt 00:00:09]} 8. Bxd6 {[%clk
01:26:35]} {[%emt 00:03:08]} Qxd6 {[%clk 00:46:59]} {[%emt 00:00:18]} 9. Nh4
{[%clk 01:26:57]} {[%emt 00:00:08]} Bg6 {[%clk 00:47:12]} {[%emt 00:00:17]} 10.
Nxg6 {[%clk 01:24:12]} {[%emt 00:03:15]} hxg6 {[%clk 00:47:37]} {[%emt
00:00:05]} 11. Nf3 {[%clk 01:24:32]} {[%emt 00:00:10]} Nf6 {[%clk 00:48:02]}
{[%emt 00:00:05]} 12. Bd3 {[%clk 01:23:41]} {[%emt 00:01:22]} O-O {[%clk
00:48:13]} {[%emt 00:00:20]} 1/2-1/2



[ePGN "0.1;DGT LiveChess/2.2.5"]

[Event "1er Tournoi de GM du Barreau de Paris"]
[Site "Paris, France"]
[Date "2019.12.16"]
[Round "2.1"]
[White "FEDORCHUK, Sergey"]
[Black "MOUHAMAD, Joachim"]
[Result "1-0"]
[TimeControl "1h30+30s\cp"]
[WhiteTitle "GM"]
[BlackTitle "FM"]
[WhiteElo "2636"]
[BlackElo "2293"]

1. e4 {[%clk 01:30:55]} {[%emt 00:00:04]} e5 {[%clk 01:30:59]} {[%emt
00:00:02]} 2. Nf3 {[%clk 01:30:53]} {[%emt 00:00:31]} Nf6 {[%clk 01:31:21]}
{[%emt 00:00:09]} 3. Nxe5 {[%clk 01:30:30]} {[%emt 00:00:52]} d6 {[%clk
01:31:48]} {[%emt 00:00:03]} 4. Nf3 {[%clk 01:30:48]} {[%emt 00:00:12]} Nxe4
{[%clk 01:32:12]} {[%emt 00:00:07]} 5. Nc3 {[%clk 01:31:11]} {[%emt 00:00:07]}
Nxc3 {[%clk 01:32:37]} {[%emt 00:00:05]} 6. dxc3 {[%clk 01:31:35]} {[%emt
00:00:06]} Be7 {[%clk 01:32:58]} {[%emt 00:00:08]} 7. Be3 {[%clk 01:31:22]}
{[%emt 00:00:43]} Nc6 {[%clk 01:33:26]} {[%emt 00:00:03]} 8. Qd2 {[%clk
01:29:42]} {[%emt 00:02:10]} Be6 {[%clk 01:33:40]} {[%emt 00:00:16]} 9. O-O-O
{[%clk 01:26:27]} {[%emt 00:03:45]} Qd7 {[%clk 01:32:28]} {[%emt 00:01:42]} 10.
b3 {[%clk 01:14:50]} {[%emt 00:12:07]} a6 {[%clk 01:32:44]} {[%emt 00:00:14]}
11. Ng5 {[%clk 01:14:20]} {[%emt 00:01:00]} Bf5 {[%clk 01:32:40]} {[%emt
00:00:35]} 12. Qd5 {[%clk 01:12:45]} {[%emt 00:02:05]} Bg6 {[%clk 01:19:02]}
{[%emt 00:14:07]} 13. Bd3 {[%clk 00:53:14]} {[%emt 00:20:00]} Bxg5 {[%clk
01:03:18]} {[%emt 00:16:15]} 14. Qxg5 {[%clk 00:44:56]} {[%emt 00:08:48]} O-O
{[%clk 00:53:46]} {[%emt 00:10:02]} 15. Be2 {[%clk 00:43:46]} {[%emt 00:01:40]}
Qf5 {[%clk 00:51:19]} {[%emt 00:02:57]} 16. Qxf5 {[%clk 00:41:34]} {[%emt
00:02:42]} Bxf5 {[%clk 00:51:45]} {[%emt 00:00:04]} 17. c4 {[%clk 00:38:22]}
{[%emt 00:03:41]} Rfe8 {[%clk 00:51:46]} {[%emt 00:00:29]} 18. g4 {[%clk
00:23:52]} {[%emt 00:15:01]} Be4 {[%clk 00:50:11]} {[%emt 00:02:06]} 19. Rhg1
{[%clk 00:24:17]} {[%emt 00:00:05]} a5 {[%clk 00:38:50]} {[%emt 00:11:51]} 20.
a3 {[%clk 00:23:30]} {[%emt 00:01:17]} b6 {[%clk 00:37:17]} {[%emt 00:02:02]}
21. h4 {[%clk 00:23:47]} {[%emt 00:00:13]} Ne5 {[%clk 00:37:17]} {[%emt
00:00:31]} 22. Rg3 {[%clk 00:24:02]} {[%emt 00:00:15]} Nd7 {[%clk 00:35:40]}
{[%emt 00:02:07]} 23. Re1 {[%clk 00:16:57]} {[%emt 00:07:35]} Bc6 {[%clk
00:34:23]} {[%emt 00:01:46]} 24. Bd2 {[%clk 00:15:11]} {[%emt 00:02:16]} Re6
{[%clk 00:32:48]} {[%emt 00:02:06]} 25. Bd1 {[%clk 00:10:50]} {[%emt 00:04:51]}
Rxe1 {[%clk 00:32:27]} {[%emt 00:00:51]} 26. Bxe1 {[%clk 00:11:17]} {[%emt
00:00:04]} Re8 {[%clk 00:32:47]} {[%emt 00:00:10]} 27. Bd2 {[%clk 00:10:37]}
{[%emt 00:01:10]} Nc5 {[%clk 00:31:59]} {[%emt 00:01:19]} 28. f3 {[%clk
00:10:08]} {[%emt 00:00:59]} Re6 {[%clk 00:27:33]} {[%emt 00:04:56]} 29. h5
{[%clk 00:05:36]} {[%emt 00:05:02]} Nd7 {[%clk 00:23:25]} {[%emt 00:04:37]} 30.
Rg1 {[%clk 00:01:58]} {[%emt 00:04:08]} Kf8 {[%clk 00:22:54]} {[%emt 00:01:02]}
31. Bg5 {[%clk 00:00:49]} {[%emt 00:01:40]} Ne5 {[%clk 00:21:46]} {[%emt
00:01:37]} 32. Rf1 {[%clk 00:00:48]} {[%emt 00:00:31]} Nd7 {[%clk 00:21:55]}
{[%emt 00:00:21]} 33. Kd2 {[%clk 00:00:48]} {[%emt 00:00:30]} Ke8 {[%clk
00:21:16]} {[%emt 00:01:08]} 34. Be2 {[%clk 00:01:06]} {[%emt 00:00:13]} Ne5
{[%clk 00:14:00]} {[%emt 00:07:46]} 35. Be3 {[%clk 00:01:15]} {[%emt 00:00:21]}
Kf8 {[%clk 00:11:22]} {[%emt 00:03:09]} 36. Bd4 {[%clk 00:01:10]} {[%emt
00:00:35]} Re8 {[%clk 00:11:05]} {[%emt 00:00:47]} 37. Be3 {[%clk 00:00:45]}
{[%emt 00:00:56]} Kg8 {[%clk 00:11:10]} {[%emt 00:00:24]} 38. h6 {[%clk
00:00:45]} {[%emt 00:00:29]} g6 {[%clk 00:10:54]} {[%emt 00:00:46]} 39. Bd4
{[%clk 00:01:09]} {[%emt 00:00:06]} f6 {[%clk 00:10:31]} {[%emt 00:00:52]} 40.
f4 {[%clk 00:00:58]} {[%emt 00:00:42]} Nd7 {[%clk 00:10:56]} {[%emt 00:00:05]}
41. b4 {[%clk 00:00:58]} {[%emt 00:00:31]} axb4 {[%clk 00:11:14]} {[%emt
00:00:12]} 42. axb4 {[%clk 00:01:26]} {[%emt 00:00:02]} Kf7 {[%clk 00:11:27]}
{[%emt 00:00:17]} 43. Bd3 {[%clk 00:01:16]} {[%emt 00:00:40]} Bg2 {[%clk
00:09:05]} {[%emt 00:02:52]} 44. Ra1 {[%clk 00:00:57]} {[%emt 00:00:49]} Ra8
{[%clk 00:09:33]} {[%emt 00:00:02]} 45. Re1 {[%clk 00:01:14]} {[%emt 00:00:13]}
Bf3 {[%clk 00:05:10]} {[%emt 00:04:53]} 46. g5 {[%clk 00:01:20]} {[%emt
00:00:23]} c5 {[%clk 00:03:37]} {[%emt 00:02:04]} 47. Bc3 {[%clk 00:01:05]}
{[%emt 00:00:46]} f5 {[%clk 00:03:59]} {[%emt 00:00:08]} 48. Bg7 {[%clk
00:00:42]} {[%emt 00:00:53]} Bc6 {[%clk 00:03:43]} {[%emt 00:00:45]} 49. Kc3
{[%clk 00:00:46]} {[%emt 00:00:27]} Ra3+ {[%clk 00:04:02]} {[%emt 00:00:11]} 50.
Kd2 {[%clk 00:00:59]} {[%emt 00:00:17]} Ra8 {[%clk 00:04:23]} {[%emt 00:00:09]}
51. Rb1 {[%clk 00:00:46]} {[%emt 00:00:42]} Ra4 {[%clk 00:04:15]} {[%emt
00:00:39]} 52. Bc3 {[%clk 00:01:00]} {[%emt 00:00:16]} Ra3 {[%clk 00:04:03]}
{[%emt 00:00:42]} 53. Rg1 {[%clk 00:00:54]} {[%emt 00:00:36]} Ra4 {[%clk
00:04:21]} {[%emt 00:00:12]} 54. b5 {[%clk 00:00:44]} {[%emt 00:00:40]} Bb7
{[%clk 00:03:59]} {[%emt 00:00:52]} 55. Bxf5 {[%clk 00:00:44]} {[%emt
00:00:31]} gxf5 {[%clk 00:02:12]} {[%emt 00:02:17]} 56. g6+ {[%clk 00:01:12]}
{[%emt 00:00:02]} Kg8 {[%clk 00:02:31]} {[%emt 00:00:11]} 57. gxh7+ {[%clk
00:01:26]} {[%emt 00:00:16]} Kxh7 {[%clk 00:02:56]} {[%emt 00:00:05]} 58. Rg7+
{[%clk 00:01:53]} {[%emt 00:00:02]} Kxh6 {[%clk 00:03:12]} {[%emt 00:00:14]} 59.
Rxd7 {[%clk 00:02:12]} {[%emt 00:00:11]} Be4 {[%clk 00:03:03]} {[%emt
00:00:39]} 60. Rxd6+ {[%clk 00:02:40]} {[%emt 00:00:04]} Kh5 {[%clk 00:03:26]}
{[%emt 00:00:07]} 61. Rxb6 {[%clk 00:02:53]} {[%emt 00:00:17]} Kg4 {[%clk
00:02:31]} {[%emt 00:01:24]} 62. Be5 {[%clk 00:02:25]} {[%emt 00:00:58]} Ra2
{[%clk 00:02:01]} {[%emt 00:01:01]} 63. Kc3 {[%clk 00:02:08]} {[%emt 00:00:47]}
Rxc2+ {[%clk 00:02:20]} {[%emt 00:00:11]} 64. Kb3 {[%clk 00:02:34]} {[%emt
00:00:04]} Rc1 {[%clk 00:01:18]} {[%emt 00:01:32]} 65. Rc6 {[%clk 00:02:01]}
{[%emt 00:01:02]} Rb1+ {[%clk 00:00:34]} {[%emt 00:01:15]} 66. Ka2 {[%clk
00:01:06]} {[%emt 00:01:26]} Rb4 {[%clk 00:00:35]} {[%emt 00:00:29]} 67. Rxc5
{[%clk 00:01:21]} {[%emt 00:00:14]} Bd3 {[%clk 00:00:51]} {[%emt 00:00:14]} 68.
Ka3 {[%clk 00:01:43]} {[%emt 00:00:09]} Rxc4 {[%clk 00:01:02]} {[%emt
00:00:19]} 69. Rxc4 {[%clk 00:02:08]} {[%emt 00:00:05]} Bxc4 {[%clk 00:01:26]}
{[%emt 00:00:05]} 70. Kb4 {[%clk 00:02:35]} {[%emt 00:00:03]} 1-0